[Event "Klatovy Open-B 2024"]
[Site "Klatovy"]
[Date "2024.07.07"]
[Round "9.1"]
[White "Kaderabek, Jiri"]
[Black "Masek, Jan"]
[Result "1-0"]
[ECO "A10"]
[WhiteElo "1984"]
[BlackElo "1839"]
[Annotator "RC"]
[PlyCount "57"]
[EventDate "2024.06.21"]
[EventType "swiss"]
[EventCountry "CZE"]
[SourceTitle "playchess.com"]
[Source "ChessBase"]
[SourceQuality "1"]
[TimeControl "40/7200:0"]

1. Nf3 {[%emt 0:00:00]} f5 {[%emt 0:01:13]} 2. d3 {[%emt 0:00:00]} Nf6 {[%emt 0:00:00]} 3. g3 {[%emt 0:00:45]} b6 {[%emt 0:00:00]} 4. Bg2 {[%emt 0:00:00]} Bb7 {[%emt 0:00:00]} 5. O-O {[%emt 0:00:00]} e6 {[%emt 0:00:00]} 6. c4 {[%emt 0:00:00]} Be7 {[%emt 0:00:00]} 7. b3 {[%emt 0:02:23]} O-O {[%emt 0:00:00]} 8. Bb2 {[%emt 0:00:00]} d6 {[%emt 0:00:33]} 9. Nc3 {[%emt 0:02:59]} Qe8 {[%emt 0:15:13]} 10. e4 {[%emt 0:13:46]} Qh5 {[%emt 0:07:42]} 11. Nd4 {[%emt 0:08:23]} Qxd1 {[%emt 1:05:08]} 12. Raxd1 {[%emt 0:00:00]} fxe4 {[%emt 0:00:00]} 13. Nxe6 {[%emt 0:00:00]} Rc8 {[%emt 0:00:57]} 14. dxe4 {[%emt 0:02:51]} Na6 {[%emt 0:08:57]} 15. Rfe1 {[%emt 0:01:37]} c6 {[%emt 0:05:51]} 16. Ba3 {[%emt 0:03:11]} Nc5 {[%emt 0:01:39]} 17. Bh3 {[%emt 0:01:47]} Ncxe4 {[%emt 0:08:28]} 18. Nxe4 {[%emt 0:01:42]} Nxe4 {[%emt 0:00:00]} 19. Rxe4 {[%emt 0:00:53]} d5 {[%emt 0:00:49]} 20. Rg4 {[%emt 0:02:59]} Bf6 {[%emt 0:00:00]} 21. Bd6 {[%emt 0:04:27]} Re8 {[%emt 0:01:13]} 22. Nc7 {[%emt 0:04:22]} Red8 {[%emt 0:00:23]} 23. c5 {[%emt 0:01:52]} bxc5 {[%emt 0:00:00]} 24. Bxc5 {[%emt 0:00:04]} Bc8 {[%emt 0:00:00]} 25. Nxa8 {[%emt 0:00:00]} Bxg4 {[%emt 0:00:00]} 26. Bxg4 {[%emt 0:00:00]} Rxa8 {[%emt 0:00:00]} 27. Bd7 {[%emt 0:01:24]} Kh8 {[%emt 0:00:00]} 28. Re1 {[%emt 0:00:00]} g6 {[%emt 0:00:00]} 29. Bxc6 {[%emt 0:00:00]} 1-0

[Event "Klatovy Open-B 2024"]
[Site "Klatovy"]
[Date "2024.07.07"]
[Round "9.2"]
[White "Slansky, Jachym"]
[Black "Mojzisova, Barbora"]
[Result "0-1"]
[ECO "C25"]
[WhiteElo "1665"]
[BlackElo "1535"]
[Annotator "NA RC"]
[PlyCount "132"]
[EventDate "2024.06.21"]
[EventType "swiss"]
[EventCountry "CZE"]
[SourceTitle "playchess.com"]
[Source "ChessBase"]
[SourceQuality "1"]
[TimeControl "40/7200:0"]

1. e4 {[%emt 0:00:00]} e5 {[%emt 0:00:00]} 2. Nc3 {[%emt 0:00:00]} Nc6 {[%emt 0:00:00]} 3. Bc4 {[%emt 0:00:00]} Bc5 {[%emt 0:00:00]} 4. d3 {[%emt 0:00:00]} d6 {[%emt 0:00:00]} 5. Na4 {[%emt 0:00:00]} Bb6 {[%emt 0:00:00]} 6. Nxb6 {[%emt 0:00:37]} axb6 {[%emt 0:00:00]} 7. c3 {[%emt 0:03:27]} Nf6 {[%emt 0:02:33]} 8. Ne2 {[%emt 0:04:18]} O-O {[%emt 0:03:03]} 9. O-O {[%emt 0:06:02]} Be6 {[%emt 0:04:05]} 10. Bxe6 {[%emt 0:00:38]} fxe6 {[%emt 0:00:00]} 11. f3 {[%emt 0:06:23]} Nh5 {[%emt 0:02:27]} 12. g3 {[%emt 0:18:25]} Qe8 {[%emt 0:05:52]} 13. d4 {[%emt 0:06:36]} Qg6 {[%emt 0:01:47]} 14. d5 {[%emt 0:05:44]} exd5 {[%emt 0:03:52]} 15. Qxd5+ {[%emt 0:01:48]} Rf7 {[%emt 0:02:20]} 16. f4 {[%emt 0:05:08]} Nf6 {[%emt 0:03:27]} 17. Qc4 {[%emt 0:07:28]} Qxe4 {[%emt 0:01:40]} 18. Qxe4 {[%emt 0:02:54]} Nxe4 {[%emt 0:00:00]} 19. Rf3 {[%emt 0:01:29]} exf4 {[%emt 0:02:42]} 20. Bxf4 {[%emt 0:01:13]} g5 {[%emt 0:02:41]} 21. Re3 {[%emt 0:01:17]} d5 {[%emt 0:00:25]} 22. c4 {[%emt 0:00:31]} gxf4 {[%emt 0:00:01]} 23. Nxf4 {[%emt 0:00:00]} Nf6 {[%emt 0:03:23]} 24. cxd5 {[%emt 0:01:20]} Ne7 {[%emt 0:01:00]} 25. Re5 {[%emt 0:01:16]} Ng6 {[%emt 0:01:01]} 26. Rf5 {[%emt 0:00:15]} Nxf4 {[%emt 0:00:11]} 27. gxf4 {[%emt 0:00:00]} Rd8 {[%emt 0:01:03]} 28. Rd1 {[%emt 0:00:00]} c6 {[%emt 0:02:18]} 29. d6 {[%emt 0:00:00]} Ne4 {[%emt 0:00:12]} 30. Re5 {[%emt 0:00:00]} Rxd6 {[%emt 0:06:33]} 31. Re1 {[%emt 0:00:00]} Rg6+ {[%emt 0:00:22]} 32. Kf1 {[%emt 0:00:18]} Rxf4+ {[%emt 0:00:00]} 33. Ke2 {[%emt 0:00:00]} Nc5 {[%emt 0:01:19]} 34. Kd2 {[%emt 0:00:52]} Rd6+ {[%emt 0:00:56]} 35. Kc2 {[%emt 0:00:00]} Rf2+ {[%emt 0:00:30]} 36. Kb1 {[%emt 0:01:46]} Rxh2 {[%emt 0:01:39]} 37. b4 {[%emt 0:00:12]} Nd7 {[%emt 0:07:11]} 38. Rg5+ {[%emt 0:01:40]} Kf7 {[%emt 0:01:03]} 39. Rg3 {[%emt 0:00:00]} Rdh6 {[%emt 0:03:34]} 40. Rge3 {[%emt 0:00:35]} Rh1 {[%emt 0:04:23]} 41. Re7+ {[%emt 2:00:52]} Kg6 {[%emt 1:59:51]} 42. Rxh1 {[%emt 0:00:00]} Rxh1+ {[%emt 0:00:00]} 43. Kc2 {[%emt 0:00:00]} Rh2+ {[%emt 0:03:31]} 44. Kc3 {[%emt 0:00:00]} Nf6 {[%emt 0:00:57]} 45. Rxb7 {[%emt 0:00:00]} Nd5+ {[%emt 0:00:00]} 46. Kb3 {[%emt 0:00:00]} Rh3+ {[%emt 0:00:10]} 47. Kb2 {[%emt 0:00:00]} Nxb4 {[%emt 0:01:27]} 48. Rxb6 {[%emt 0:00:00]} Rh2+ {[%emt 0:00:00]} 49. Kb3 {[%emt 0:00:00]} Rxa2 {[%emt 0:00:35]} 50. Rxb4 {[%emt 0:00:00]} Rf2 {[%emt 0:00:15]} 51. Rb6 {[%emt 0:00:00]} Rf6 {[%emt 0:00:00]} 52. Rb8 {[%emt 0:00:00]} Kg5 {[%emt 0:00:18]} 53. Kc4 {[%emt 0:00:00]} h5 {[%emt 0:00:15]} 54. Kd4 {[%emt 0:00:00]} h4 {[%emt 0:02:59]} 55. Ke4 {[%emt 0:00:00]} c5 {[%emt 0:02:32]} 56. Rc8 {[%emt 0:00:00]} Rf4+ {[%emt 0:00:52]} 57. Ke3 {[%emt 0:00:00]} Rf5 {[%emt 0:00:38]} 58. Rg8+ {[%emt 0:00:28]} Kh5 {[%emt 0:00:00]} 59. Rh8+ {[%emt 0:02:07]} Kg4 {[%emt 0:00:00]} 60. Ke4 {[%emt 0:00:00]} c4 {[%emt 0:01:24]} 61. Kd4 {[%emt 0:02:37]} Rf4+ {[%emt 0:00:11]} 62. Ke3 {[%emt 0:00:00]} Kg3 {[%emt 0:00:10]} 63. Rc8 {[%emt 0:00:31]} h3 {[%emt 0:01:08]} 64. Ke2 {[%emt 0:00:27]} h2 {[%emt 0:00:55]} 65. Rh8 {[%emt 0:00:57]} Rh4 {[%emt 0:00:00]} 66. Rg8+ {[%emt 0:00:00]} Kh3 {[%emt 0:00:22]} 0-1

[Event "Klatovy Open-B 2024"]
[Site "Klatovy"]
[Date "2024.07.07"]
[Round "9.3"]
[White "Kolman, Pavel Petr"]
[Black "Koper, Stefan"]
[Result "1/2-1/2"]
[ECO "C45"]
[WhiteElo "1582"]
[BlackElo "1845"]
[Annotator "NA RC"]
[PlyCount "22"]
[EventDate "2024.06.21"]
[EventType "swiss"]
[EventCountry "CZE"]
[SourceTitle "playchess.com"]
[Source "ChessBase"]
[SourceQuality "1"]
[TimeControl "40/7200:0"]

1. e4 {[%emt 0:00:00]} e5 {[%emt 0:00:00]} 2. Nf3 {[%emt 0:00:00]} Nc6 {[%emt 0:00:00]} 3. d4 {[%emt 0:00:00]} Nxd4 {[%emt 0:02:47]} 4. Nxd4 {[%emt 0:00:05]} exd4 {[%emt 0:00:00]} 5. Qxd4 {[%emt 0:00:00]} d6 {[%emt 0:00:00]} 6. Bf4 {[%emt 0:01:25]} Ne7 {[%emt 0:07:57]} 7. Nc3 {[%emt 0:01:44]} Bd7 {[%emt 0:01:18]} 8. Bc4 {[%emt 0:02:32]} Nc6 {[%emt 0:00:00]} 9. Qd2 {[%emt 0:00:06]} Be7 {[%emt 0:02:50]} 10. Rd1 {[%emt 0:03:34]} O-O {[%emt 0:00:47]} 11. e5 {[%emt 0:00:39]} dxe5 {[%emt 0:00:00]} 1/2-1/2

[Event "Klatovy Open-B 2024"]
[Site "Klatovy"]
[Date "2024.07.07"]
[Round "9.4"]
[White "Rudlof, Jan"]
[Black "Beran, Jakub"]
[Result "0-1"]
[ECO "D09"]
[WhiteElo "1799"]
[BlackElo "1791"]
[Annotator "NA RC"]
[PlyCount "86"]
[EventDate "2024.06.21"]
[EventType "swiss"]
[EventCountry "CZE"]
[SourceTitle "playchess.com"]
[Source "ChessBase"]
[SourceQuality "1"]
[TimeControl "40/7200:0"]

1. d4 {[%emt 0:13:09]} d5 {[%emt 0:00:00]} 2. c4 {[%emt 0:00:00]} e5 {[%emt 0:00:00]} 3. dxe5 {[%emt 0:00:00]} d4 {[%emt 0:00:00]} 4. Nf3 {[%emt 0:00:00]} Nc6 {[%emt 0:00:00]} 5. g3 {[%emt 0:03:00]} Be6 {[%emt 0:00:23]} 6. Qa4 {[%emt 0:05:22]} Qd7 {[%emt 0:03:30]} 7. Bg2 {[%emt 0:04:16]} Nge7 {[%emt 0:26:09]} 8. O-O {[%emt 0:01:43]} Ng6 {[%emt 0:02:07]} 9. Nbd2 {[%emt 0:21:19]} h5 {[%emt 0:09:37]} 10. h4 {[%emt 0:03:31]} a6 {[%emt 0:06:45]} 11. a3 {[%emt 0:02:06]} O-O-O {[%emt 0:02:51]} 12. b4 {[%emt 0:09:10]} Ncxe5 {[%emt 0:05:14]} 13. b5 {[%emt 0:05:32]} Bc5 {[%emt 0:06:08]} 14. Ne4 {[%emt 0:12:32]} Ba7 {[%emt 0:03:07]} 15. Nfd2 {[%emt 0:01:13]} c5 {[%emt 0:13:40]} 16. Rb1 {[%emt 0:13:18]} Bb6 {[%emt 0:02:24]} 17. f4 {[%emt 0:09:20]} f5 {[%emt 0:08:17]} 18. Ng5 {[%emt 0:02:41]} Ng4 {[%emt 0:00:24]} 19. Bxb7+ {[%emt 0:02:40]} Kxb7 {[%emt 0:02:38]} 20. Qxa6+ {[%emt 0:00:07]} Kc7 {[%emt 0:00:00]} 21. Nb3 {[%emt 0:04:57]} Rde8 {[%emt 0:23:00]} 22. Nxc5 {[%emt 0:00:19]} Bxc5 {[%emt 0:00:00]} 23. b6+ {[%emt 0:00:00]} Kd8 {[%emt 0:00:34]} 24. Qa5 {[%emt 0:02:13]} Bd6 {[%emt 0:01:43]} 25. c5 {[%emt 0:00:00]} Bb8 {[%emt 0:00:16]} 26. a4 {[%emt 0:00:15]} Bd5 {[%emt 0:00:20]} 27. Ba3 {[%emt 0:00:00]} Bc6 {[%emt 0:00:05]} 28. Rfd1 {[%emt 0:00:11]} Qd5 {[%emt 0:00:11]} 29. Nf3 {[%emt 0:00:00]} Re4 {[%emt 0:00:00]} 30. Rb4 {[%emt 0:00:00]} Ke8 {[%emt 0:00:00]} 31. Rbxd4 {[%emt 0:00:00]} Rxd4 {[%emt 0:00:00]} 32. Rxd4 {[%emt 0:00:00]} Qe6 {[%emt 0:00:00]} 33. Qd2 {[%emt 0:00:00]} Qe3+ {[%emt 0:00:00]} 34. Qxe3+ {[%emt 0:00:00]} Nxe3 {[%emt 0:00:00]} 35. a5 {[%emt 0:00:00]} Bb5 {[%emt 0:00:00]} 36. Rb4 {[%emt 0:00:00]} Ba6 {[%emt 0:00:00]} 37. c6 {[%emt 0:00:00]} Nd5 {[%emt 0:00:04]} 38. Rd4 {[%emt 0:00:00]} Nge7 {[%emt 0:00:01]} 39. Ne5 {[%emt 0:00:13]} Bxe5 {[%emt 0:00:00]} 40. fxe5 {[%emt 0:00:00]} Kf7 {[%emt 0:00:00]} 41. Bc5 {[%emt 2:00:21]} Ke6 {[%emt 1:59:41]} 42. b7 {[%emt 0:00:00]} Nxc6 {[%emt 0:00:00]} 43. b8=Q {[%emt 0:00:32]} Rxb8 {[%emt 0:00:00]} 0-1

[Event "Klatovy Open-B 2024"]
[Site "Klatovy"]
[Date "2024.07.07"]
[Round "9.5"]
[White "Martinek, Lukas"]
[Black "Svejdar, Pavel"]
[Result "1-0"]
[ECO "C02"]
[WhiteElo "1698"]
[BlackElo "1721"]
[Annotator "NA RC"]
[PlyCount "75"]
[EventDate "2024.06.21"]
[EventType "swiss"]
[EventCountry "CZE"]
[SourceTitle "playchess.com"]
[Source "ChessBase"]
[SourceQuality "1"]
[TimeControl "40/7200:0"]

1. e4 {[%emt 0:00:00]} e6 {[%emt 0:00:00]} 2. d4 {[%emt 0:00:35]} d5 {[%emt 0:00:00]} 3. e5 {[%emt 0:00:59]} c5 {[%emt 0:00:00]} 4. c3 {[%emt 0:01:09]} Nc6 {[%emt 0:00:00]} 5. Nf3 {[%emt 0:00:55]} Qb6 {[%emt 0:00:39]} 6. a3 {[%emt 0:00:59]} c4 {[%emt 0:01:46]} 7. Nbd2 {[%emt 0:06:30]} Na5 {[%emt 0:06:18]} 8. b4 {[%emt 0:02:51]} Nc6 {[%emt 0:05:23]} 9. Ng5 {[%emt 0:07:42]} h6 {[%emt 0:11:05]} 10. Nh3 {[%emt 0:04:21]} Nge7 {[%emt 0:06:36]} 11. f4 {[%emt 0:19:56]} Ng6 {[%emt 0:04:30]} 12. g3 {[%emt 0:08:02]} a5 {[%emt 0:01:52]} 13. Bb2 {[%emt 0:01:55]} Be7 {[%emt 0:02:51]} 14. Bg2 {[%emt 0:01:40]} Bd7 {[%emt 0:03:09]} 15. O-O {[%emt 0:01:27]} Bd8 {[%emt 0:07:45]} 16. f5 {[%emt 0:01:05]} Nge7 {[%emt 0:06:43]} 17. f6 {[%emt 0:01:47]} gxf6 {[%emt 0:01:48]} 18. exf6 {[%emt 0:04:41]} Nf5 {[%emt 0:01:22]} 19. Qe2 {[%emt 0:04:41]} Nd6 {[%emt 0:00:00]} 20. Bxd5 {[%emt 0:02:30]} axb4 {[%emt 0:00:57]} 21. axb4 {[%emt 0:01:16]} Rxa1 {[%emt 0:00:37]} 22. Bxa1 {[%emt 0:02:50]} Qb5 {[%emt 0:07:55]} 23. Bxc4 {[%emt 0:01:20]} Nxc4 {[%emt 0:00:12]} 24. Qxc4 {[%emt 0:07:55]} Qa4 {[%emt 0:05:10]} 25. Ne4 {[%emt 0:03:14]} Bc7 {[%emt 0:04:02]} 26. Nc5 {[%emt 0:00:47]} Qa7 {[%emt 0:00:53]} 27. Nxd7 {[%emt 0:00:42]} Kxd7 {[%emt 0:00:00]} 28. Nf2 {[%emt 0:01:13]} Rg8 {[%emt 0:00:19]} 29. d5 {[%emt 0:00:15]} Ne5 {[%emt 0:01:10]} 30. dxe6+ {[%emt 0:00:37]} fxe6 {[%emt 0:00:02]} 31. Qd4+ {[%emt 0:03:28]} Qxd4 {[%emt 0:00:35]} 32. cxd4 {[%emt 0:00:00]} Nc4 {[%emt 0:01:41]} 33. Ne4 {[%emt 0:00:43]} Ne3 {[%emt 0:01:59]} 34. Rf2 {[%emt 0:00:09]} Ra8 {[%emt 0:00:51]} 35. Bc3 {[%emt 0:01:53]} Ng4 {[%emt 0:00:55]} 36. Nc5+ {[%emt 0:00:19]} Ke8 {[%emt 0:00:04]} 37. f7+ {[%emt 0:00:51]} Ke7 {[%emt 0:00:00]} 38. f8=Q+ {[%emt 0:00:00]} 1-0

[Event "Klatovy Open-B 2024"]
[Site "Klatovy"]
[Date "2024.07.07"]
[Round "9.6"]
[White "Vojta, Radek"]
[Black "Kasik, Denis"]
[Result "1/2-1/2"]
[ECO "C11"]
[WhiteElo "1693"]
[BlackElo "1596"]
[Annotator "NA RC"]
[PlyCount "39"]
[EventDate "2024.06.21"]
[EventType "swiss"]
[EventCountry "CZE"]
[SourceTitle "playchess.com"]
[Source "ChessBase"]
[SourceQuality "1"]
[TimeControl "40/7200:0"]

1. e4 {[%emt 0:00:00]} e6 {[%emt 0:00:00]} 2. d4 {[%emt 0:00:00]} d5 {[%emt 0:00:00]} 3. Nc3 {[%emt 0:00:00]} Nf6 {[%emt 0:00:00]} 4. e5 {[%emt 0:00:00]} Nfd7 {[%emt 0:00:00]} 5. f4 {[%emt 0:00:00]} c5 {[%emt 0:00:00]} 6. Nf3 {[%emt 0:00:00]} Nc6 {[%emt 0:00:00]} 7. Be3 {[%emt 0:00:00]} cxd4 {[%emt 0:00:15]} 8. Nxd4 {[%emt 0:00:00]} Nxd4 {[%emt 0:02:20]} 9. Bxd4 {[%emt 0:00:00]} Bc5 {[%emt 0:05:28]} 10. Qd2 {[%emt 0:03:52]} Bxd4 {[%emt 0:02:55]} 11. Qxd4 {[%emt 0:00:00]} a6 {[%emt 0:05:43]} 12. O-O-O {[%emt 0:03:49]} Qb6 {[%emt 0:05:57]} 13. Qxb6 {[%emt 0:12:37]} Nxb6 {[%emt 0:00:00]} 14. Bd3 {[%emt 0:00:00]} Bd7 {[%emt 0:00:23]} 15. g4 {[%emt 0:01:46]} Bc6 {[%emt 0:13:49]} 16. Rhg1 {[%emt 0:07:57]} Nd7 {[%emt 0:04:27]} 17. Ne2 {[%emt 0:06:48]} O-O {[%emt 0:06:38]} 18. Nd4 {[%emt 0:00:34]} Rac8 {[%emt 0:05:11]} 19. Rde1 {[%emt 0:10:06]} Rfe8 {[%emt 0:08:58]} 20. Re3 {[%emt 0:11:57]} 1/2-1/2

[Event "Klatovy Open-B 2024"]
[Site "Klatovy"]
[Date "2024.07.07"]
[Round "9.7"]
[White "Koupil, Stepan"]
[Black "Bukvaj, Jan"]
[Result "1-0"]
[ECO "C45"]
[WhiteElo "1685"]
[BlackElo "1652"]
[Annotator "NA RC"]
[PlyCount "129"]
[EventDate "2024.06.21"]
[EventType "swiss"]
[EventCountry "CZE"]
[SourceTitle "playchess.com"]
[Source "ChessBase"]
[SourceQuality "1"]
[TimeControl "40/7200:0"]

1. e4 {[%emt 0:00:00]} Nc6 {[%emt 0:00:00]} 2. Nf3 {[%emt 0:00:00]} e5 {[%emt 0:01:24]} 3. d4 {[%emt 0:00:00]} exd4 {[%emt 0:00:00]} 4. Nxd4 {[%emt 0:00:00]} Bc5 {[%emt 0:00:00]} 5. Be3 {[%emt 0:00:00]} Qf6 {[%emt 0:00:00]} 6. c3 {[%emt 0:00:00]} Nge7 {[%emt 0:02:29]} 7. Qf3 {[%emt 0:00:00]} Qxf3 {[%emt 0:00:00]} 8. gxf3 {[%emt 0:00:00]} Nxd4 {[%emt 0:02:53]} 9. cxd4 {[%emt 0:00:00]} Bb6 {[%emt 0:00:20]} 10. Nc3 {[%emt 0:00:00]} d6 {[%emt 0:01:41]} 11. O-O-O {[%emt 0:00:00]} Bd7 {[%emt 0:03:53]} 12. Rg1 {[%emt 0:00:22]} Rg8 {[%emt 0:06:17]} 13. f4 {[%emt 0:02:01]} O-O-O {[%emt 0:05:52]} 14. f5 {[%emt 0:02:21]} h6 {[%emt 0:04:42]} 15. Bc4 {[%emt 0:00:57]} Rdf8 {[%emt 0:00:26]} 16. f6 {[%emt 0:02:20]} gxf6 {[%emt 0:01:30]} 17. Bxh6 {[%emt 0:00:00]} Rxg1 {[%emt 0:00:00]} 18. Rxg1 {[%emt 0:00:00]} Rg8 {[%emt 0:01:47]} 19. Rg7 {[%emt 0:07:05]} Rxg7 {[%emt 0:00:29]} 20. Bxg7 {[%emt 0:00:00]} Bxd4 {[%emt 0:01:10]} 21. h4 {[%emt 0:00:25]} Bxf2 {[%emt 0:09:56]} 22. h5 {[%emt 0:00:00]} Ng8 {[%emt 0:02:33]} 23. Bxf7 {[%emt 0:01:27]} Be3+ {[%emt 0:00:00]} 24. Kc2 {[%emt 0:00:00]} Bh6 {[%emt 0:07:58]} 25. Bh8 {[%emt 0:00:03]} Ne7 {[%emt 0:02:19]} 26. Bxf6 {[%emt 0:00:00]} Nc6 {[%emt 0:00:00]} 27. Nd5 {[%emt 0:00:37]} Nd8 {[%emt 0:04:01]} 28. Ne7+ {[%emt 0:00:42]} Kb8 {[%emt 0:00:00]} 29. Bg6 {[%emt 0:00:00]} Be6 {[%emt 0:05:05]} 30. Nd5 {[%emt 0:02:47]} Nf7 {[%emt 0:02:45]} 31. Bc3 {[%emt 0:00:01]} Ne5 {[%emt 0:20:14]} 32. Bd2 {[%emt 0:09:50]} Ng4 {[%emt 0:05:51]} 33. Kd3 {[%emt 0:03:56]} Ne5+ {[%emt 0:06:21]} 34. Kc2 {[%emt 0:01:07]} Ng4 {[%emt 0:00:00]} 35. Bxh6 {[%emt 0:02:13]} Nxh6 {[%emt 0:00:00]} 36. Kd3 {[%emt 0:00:02]} Bxd5 {[%emt 0:04:55]} 37. exd5 {[%emt 0:00:00]} Kc8 {[%emt 0:00:00]} 38. Ke4 {[%emt 0:00:00]} Kd7 {[%emt 0:00:00]} 39. Kf4 {[%emt 0:00:00]} Ke7 {[%emt 0:00:00]} 40. Kg5 {[%emt 0:00:00]} Ng8 {[%emt 0:00:00]} 41. h6 {[%emt 1:58:18]} Nxh6 {[%emt 1:59:40]} 42. Kxh6 {[%emt 0:00:00]} Kf6 {[%emt 0:00:00]} 43. Bc2 {[%emt 0:09:46]} Ke5 {[%emt 0:00:52]} 44. Bb3 {[%emt 0:00:36]} c6 {[%emt 0:00:00]} 45. Kg5 {[%emt 0:00:00]} cxd5 {[%emt 0:00:37]} 46. Kg4 {[%emt 0:00:00]} Ke4 {[%emt 0:00:24]} 47. Kg3 {[%emt 0:00:00]} d4 {[%emt 0:00:45]} 48. Kf2 {[%emt 0:00:00]} d3 {[%emt 0:00:50]} 49. Ke1 {[%emt 0:00:00]} Ke3 {[%emt 0:00:00]} 50. Kd1 {[%emt 0:00:00]} b6 {[%emt 0:00:25]} 51. a4 {[%emt 0:00:00]} a5 {[%emt 0:01:38]} 52. Ke1 {[%emt 0:00:00]} d2+ {[%emt 0:00:56]} 53. Kd1 {[%emt 0:00:00]} Kd3 {[%emt 0:00:00]} 54. Bc2+ {[%emt 0:00:00]} Ke3 {[%emt 0:00:00]} 55. Bb1 {[%emt 0:00:00]} d5 {[%emt 0:00:00]} 56. Bc2 {[%emt 0:00:00]} d4 {[%emt 0:00:46]} 57. Bb1 {[%emt 0:00:00]} d3 {[%emt 0:00:00]} 58. Ba2 {[%emt 0:00:00]} Kd4 {[%emt 0:00:00]} 59. Kxd2 {[%emt 0:00:00]} Kc5 {[%emt 0:00:00]} 60. Kxd3 {[%emt 0:00:00]} Kb4 {[%emt 0:00:00]} 61. Kd4 {[%emt 0:00:00]} Kxa4 {[%emt 0:00:00]} 62. Kc4 {[%emt 0:00:00]} b5+ {[%emt 0:00:00]} 63. Kc3 {[%emt 0:00:00]} b4+ {[%emt 0:00:00]} 64. Kc4 {[%emt 0:00:00]} b3 65. Bxb3# 1-0

[Event "Klatovy Open-B 2024"]
[Site "Klatovy"]
[Date "2024.07.07"]
[Round "9.8"]
[White "Jelinek, Jan"]
[Black "Trejbal, Jindrich"]
[Result "0-1"]
[ECO "C42"]
[WhiteElo "1662"]
[BlackElo "1953"]
[Annotator "RC"]
[PlyCount "50"]
[EventDate "2024.06.21"]
[EventType "swiss"]
[EventCountry "CZE"]
[SourceTitle "playchess.com"]
[Source "ChessBase"]
[SourceQuality "1"]
[TimeControl "40/7200:0"]

1. e4 {[%emt 0:22:12]} e5 {[%emt 0:00:00]} 2. Nf3 {[%emt 0:00:00]} Nf6 {[%emt 0:00:00]} 3. Nc3 {[%emt 0:00:00]} Bb4 {[%emt 0:00:00]} 4. Nd5 {[%emt 0:00:00]} Nxd5 {[%emt 0:00:00]} 5. exd5 {[%emt 0:00:00]} O-O {[%emt 0:02:08]} 6. c3 {[%emt 0:00:00]} Ba5 {[%emt 0:01:32]} 7. Bc4 {[%emt 0:01:46]} e4 {[%emt 0:02:52]} 8. Nd4 {[%emt 0:00:07]} d6 {[%emt 1:53:28]} 9. O-O {[%emt 0:00:41]} Bb6 {[%emt 0:00:00]} 10. Nc2 {[%emt 0:00:21]} f5 {[%emt 0:00:00]} 11. d3 {[%emt 0:04:49]} Qh4 {[%emt 0:00:00]} 12. Be3 {[%emt 0:06:31]} Nd7 {[%emt 0:00:00]} 13. dxe4 {[%emt 0:05:55]} fxe4 {[%emt 0:00:00]} 14. Nd4 {[%emt 0:05:54]} Ne5 {[%emt 0:00:00]} 15. Be2 {[%emt 0:00:49]} Bg4 {[%emt 0:00:00]} 16. Bxg4 {[%emt 0:06:06]} Nxg4 {[%emt 0:00:00]} 17. h3 {[%emt 0:00:00]} Ne5 {[%emt 0:00:00]} 18. Ne6 {[%emt 0:06:29]} Nf3+ {[%emt 0:00:00]} 19. gxf3 {[%emt 0:17:03]} Bxe3 {[%emt 0:00:00]} 20. Nxf8 {[%emt 0:08:11]} Qg3+ {[%emt 0:00:00]} 21. Kh1 {[%emt 0:00:03]} Qxh3+ {[%emt 0:00:00]} 22. Kg1 {[%emt 0:00:12]} Bf4 {[%emt 0:00:00]} 23. Re1 {[%emt 0:00:00]} Bh2+ {[%emt 0:00:00]} 24. Kh1 {[%emt 0:00:00]} Bg3+ {[%emt 0:00:00]} 25. Kg1 {[%emt 0:00:00]} Qh2+ {[%emt 0:00:00]} 0-1

[Event "Klatovy Open-B 2024"]
[Site "Klatovy"]
[Date "2024.07.07"]
[Round "9.9"]
[White "Velkoborsky, Tadeas"]
[Black "Sova, Zdenek"]
[Result "1-0"]
[ECO "B43"]
[WhiteElo "1578"]
[BlackElo "1822"]
[Annotator "NA RC"]
[PlyCount "105"]
[EventDate "2024.06.21"]
[EventType "swiss"]
[EventCountry "CZE"]
[SourceTitle "playchess.com"]
[Source "ChessBase"]
[SourceQuality "1"]
[TimeControl "40/7200:0"]

1. e4 {[%emt 0:00:00]} c5 {[%emt 0:00:00]} 2. Nf3 {[%emt 0:00:00]} e6 {[%emt 0:00:00]} 3. d4 {[%emt 0:00:00]} cxd4 {[%emt 0:00:00]} 4. Nxd4 {[%emt 0:00:00]} a6 {[%emt 0:00:00]} 5. Nc3 {[%emt 0:00:00]} Qc7 {[%emt 0:00:00]} 6. Bd3 {[%emt 0:00:00]} Nf6 {[%emt 0:00:00]} 7. Bg5 {[%emt 0:02:38]} Be7 {[%emt 0:00:00]} 8. O-O {[%emt 0:00:13]} O-O {[%emt 0:00:00]} 9. Re1 {[%emt 0:01:04]} d6 {[%emt 0:00:00]} 10. Qf3 {[%emt 0:04:43]} Nbd7 {[%emt 0:00:21]} 11. Rad1 {[%emt 0:06:18]} Ne5 {[%emt 0:10:26]} 12. Qg3 {[%emt 0:05:13]} Ng6 {[%emt 0:04:16]} 13. Kh1 {[%emt 0:05:32]} h6 {[%emt 0:02:11]} 14. Bd2 {[%emt 0:12:40]} Qb6 {[%emt 0:10:10]} 15. Nb3 {[%emt 0:06:04]} Bd7 {[%emt 0:01:30]} 16. f4 {[%emt 0:05:53]} Kh8 {[%emt 0:04:50]} 17. e5 {[%emt 0:03:11]} dxe5 {[%emt 0:01:41]} 18. fxe5 {[%emt 0:00:00]} Nh7 {[%emt 0:05:58]} 19. Bxg6 {[%emt 0:00:00]} fxg6 {[%emt 0:00:00]} 20. Qxg6 {[%emt 0:00:00]} Be8 {[%emt 0:02:31]} 21. Qg3 {[%emt 0:03:31]} Bh5 {[%emt 0:01:42]} 22. Be3 {[%emt 0:02:58]} Qc7 {[%emt 0:01:55]} 23. Nd4 {[%emt 0:02:14]} Bf7 {[%emt 0:03:14]} 24. Rf1 {[%emt 0:02:04]} Bg8 {[%emt 0:02:21]} 25. Nce2 {[%emt 0:05:54]} Rxf1+ {[%emt 0:00:24]} 26. Rxf1 {[%emt 0:00:00]} Rf8 {[%emt 0:04:13]} 27. Nf4 {[%emt 0:00:25]} Rxf4 {[%emt 0:05:34]} 28. Bxf4 {[%emt 0:02:06]} Qc4 {[%emt 0:00:46]} 29. Rd1 {[%emt 0:05:24]} Ng5 {[%emt 0:01:16]} 30. Bxg5 {[%emt 0:01:49]} Bxg5 {[%emt 0:00:00]} 31. Qb3 {[%emt 0:00:27]} Qc8 {[%emt 0:00:00]} 32. Nf3 {[%emt 0:01:11]} Be7 {[%emt 0:00:06]} 33. Qd3 {[%emt 0:05:05]} Qc5 {[%emt 0:02:06]} 34. Qe4 {[%emt 0:01:23]} Qb5 {[%emt 0:01:38]} 35. b3 {[%emt 0:01:38]} Bh7 {[%emt 0:00:00]} 36. Qc4 {[%emt 0:01:06]} Qb6 {[%emt 0:00:01]} 37. Rd7 {[%emt 0:00:37]} Bc5 {[%emt 0:05:35]} 38. Qg4 {[%emt 0:00:56]} Bf8 {[%emt 0:02:47]} 39. Qf4 {[%emt 0:05:40]} Bf5 {[%emt 0:01:19]} 40. Nd4 {[%emt 0:00:30]} g5 {[%emt 0:00:00]} 41. Qf3 {[%emt 2:00:35]} Qb4 {[%emt 2:02:43]} 42. c3 {[%emt 0:02:29]} Qa3 {[%emt 0:00:50]} 43. Nxf5 {[%emt 0:00:31]} exf5 {[%emt 0:00:41]} 44. e6 {[%emt 0:00:26]} Be7 {[%emt 0:02:19]} 45. h3 {[%emt 0:00:40]} Bd6 {[%emt 0:07:33]} 46. Qd1 {[%emt 0:00:00]} Bf8 {[%emt 0:00:59]} 47. Qd4+ {[%emt 0:00:02]} Kg8 {[%emt 0:00:00]} 48. Kh2 {[%emt 0:02:54]} Qc1 {[%emt 0:03:58]} 49. Qd2 {[%emt 0:00:08]} Qa3 {[%emt 0:11:08]} 50. Qd5 {[%emt 0:00:18]} Kh8 {[%emt 0:01:02]} 51. Qe5+ {[%emt 0:00:00]} Kg8 {[%emt 0:00:00]} 52. b4 {[%emt 0:01:20]} Qc1 {[%emt 0:02:00]} 53. Qxf5 {[%emt 0:00:10]} 1-0